bitfinex/quotes_BTCUSD_20250226
["timestamp","ask_amount","ask_price","bid_price","bid_amount"]
[1740583173780,0.001,88483.0,88470.0,0.1297]
[1740583173985,0.001,88483.0,88470.0,0.299247]
[1740583174334,0.001,88483.0,88471.0,0.3]
[1740583174995,0.225998,88496.0,88471.0,0.3]
[1740583175188,0.0002,88529.0,88471.0,0.3]
[1740583175358,0.00197729,88525.0,88471.0,0.3]
[1740583175571,0.169547,88471.0,88470.0,0.00354829]
[1740583175776,0.169547,88471.0,88470.0,0.01054829]
[1740583176352,0.339,88496.0,88462.0,0.01268]
[1740583176576,0.169545,88472.0,88471.0,0.014]
[1740583176730,0.169545,88472.0,88471.0,0.007]
[1740583176930,0.226053,88475.0,88462.0,0.01268]
[1740583177136,0.3282978,88490.0,88462.0,0.01268]
[1740583177341,0.169547,88471.0,88470.0,0.007]
[1740583178154,0.169547,88471.0,88470.0,0.014]
[1740583178577,0.169562,88463.0,88462.0,0.01268]
[1740583179155,0.169562,88463.0,88462.0,0.007]
[1740583179362,0.17154019,88463.0,88462.0,0.007]
[1740583179572,0.169579,88454.0,88453.0,0.00354829]
[1740583179720,0.169589,88449.0,88448.0,0.3]
[1740583179918,0.169591,88448.0,88447.0,1.5]
[1740583180512,0.1699725,88463.0,88462.0,0.007]
[1740583180989,0.0004105,88463.0,88462.0,0.007]
[1740583181389,0.0004105,88463.0,88462.0,1.807]
[1740583181826,0.0004105,88463.0,88462.0,1.8]
[1740583182009,0.0004105,88463.0,88462.0,1.8133628]
[1740583182353,0.1699725,88463.0,88462.0,1.8133628]
[1740583182556,0.0004105,88463.0,88462.0,1.8133628]
[1740583182731,0.0004105,88463.0,88462.0,1.5203628]
[1740583182732,0.1699725,88463.0,88462.0,1.5203628]
[1740583183235,0.1699725,88463.0,88462.0,1.81054458]
[1740583183437,0.1699725,88463.0,88462.0,1.51754458]
[1740583183614,0.1699725,88463.0,88462.0,1.81754458]
[1740583183843,0.1699725,88463.0,88462.0,1.814]
[1740583184902,0.1699725,88463.0,88462.0,1.807]
[1740583185321,0.23218505,88463.0,88462.0,1e-06]
[1740583185450,0.56048285,88463.0,88462.0,1e-06]
[1740583185651,0.169612,88437.0,88436.0,0.0004235]
[1740583186357,0.169612,88437.0,88436.0,0.00397007]
[1740583186837,0.169612,88437.0,88436.0,7e-08]
[1740583186994,0.169612,88437.0,88436.0,0.00985491]
[1740583187312,0.169612,88437.0,88436.0,9.1e-07]
[1740583188338,0.170612,88437.0,88436.0,9.1e-07]
[1740583188487,0.169642,88421.0,88420.0,4e-05]
[1740583189730,0.169642,88421.0,88420.0,0.0001632]
[1740583189948,0.170642,88421.0,88420.0,0.0051632]
[1740583190159,0.171642,88421.0,88420.0,0.0051632]
[1740583190362,0.171642,88421.0,88420.0,1.8051632]
[1740583191138,0.171642,88421.0,88420.0,0.3051632]
[1740583191336,0.171642,88421.0,88420.0,0.0051632]
[1740583191762,0.171642,88421.0,88420.0,2e-07]
[1740583191961,0.171642,88421.0,88401.0,0.3]
[1740583191962,0.169679,88402.0,88401.0,0.3]
[1740583192162,0.169696,88393.0,88392.0,0.01564004]
[1740583193187,0.169721,88380.0,88379.0,0.0004239]
[1740583193391,0.169721,88380.0,88379.0,0.00054703]
[1740583194381,0.170721,88380.0,88379.0,0.00054703]
[1740583195487,0.171721,88380.0,88379.0,0.00054703]
[1740583197636,0.17370119,88380.0,88379.0,3e-08]
[1740583198557,0.169742,88369.0,88368.0,8.3e-07]
[1740583199717,0.170742,88369.0,88368.0,8.3e-07]
[1740583199943,0.171742,88369.0,88368.0,8.3e-07]
[1740583200351,0.171742,88369.0,88368.0,1.80000083]
[1740583200558,0.002,88369.0,88368.0,1.80000083]
[1740583200767,0.002,88369.0,88368.0,1.87910083]
[1740583200988,0.171742,88369.0,88368.0,1.87910083]
[1740583201198,0.171742,88369.0,88368.0,1.80000083]
[1740583201407,0.171742,88369.0,88368.0,1.52534533]
[1740583201519,0.171742,88369.0,88368.0,3.3e-07]
[1740583201714,0.170742,88369.0,88368.0,3.3e-07]
[1740583201970,0.169752,88364.0,88363.0,1.3e-07]
[1740583202170,0.169788,88345.0,88344.0,6.5e-07]
[1740583202321,0.169788,88345.0,88344.0,0.00012376]
[1740583202951,0.22637,88351.0,88339.0,7e-07]
[1740583203147,0.169798,88340.0,88339.0,7e-07]
[1740583203614,0.21075718,88340.0,88339.0,7e-07]
[1740583204054,0.21075718,88340.0,88329.0,7e-07]
[1740583204055,0.226403,88338.0,88329.0,7e-07]
[1740583204269,0.169817,88330.0,88329.0,7e-07]
[1740583204598,0.20879493,88330.0,88329.0,7e-07]
[1740583204808,0.18608548,88330.0,88329.0,7e-07]
[1740583205045,0.21426175,88330.0,88329.0,7e-07]
[1740583205246,0.03166176,88330.0,88313.0,3e-07]
[1740583205449,0.03166176,88330.0,88304.0,8.2e-07]
[1740583205450,0.169865,88305.0,88304.0,8.2e-07]
[1740583205932,0.169892,88291.0,88270.0,0.004542]
[1740583206147,0.169892,88291.0,88290.0,1e-07]
[1740583206362,0.169913,88280.0,88279.0,0.0003272]
[1740583206802,0.21237631,88280.0,88279.0,0.0003272]
[1740583207012,0.2124991,88280.0,88279.0,2e-07]
[1740583207220,0.199716,88280.0,88279.0,2e-07]
[1740583207428,0.17003579,88280.0,88279.0,2e-07]
[1740583207843,0.17003579,88280.0,88279.0,0.0070002]
[1740583208267,0.199716,88280.0,88279.0,2e-07]
[1740583208474,0.17003579,88280.0,88279.0,2e-07]
[1740583208683,0.17218695,88280.0,88279.0,2e-07]
[1740583208898,0.18497005,88280.0,88279.0,2e-07]
[1740583209099,0.17301845,88280.0,88279.0,2e-07]
[1740583209318,0.169969,88251.0,88250.0,0.0004245]
[1740583209719,0.17162455,88251.0,88250.0,0.0004245]
[1740583209898,0.20130476,88251.0,88250.0,0.0004245]
[1740583210130,1.57321698,88251.0,88250.0,5e-07]
[1740583210343,0.170006,88232.0,88231.0,4.1e-07]
[1740583210766,0.226666,88236.0,88223.0,1.3e-07]
[1740583210767,0.170021,88224.0,88223.0,1.3e-07]
[1740583210976,0.17200492,88224.0,88223.0,1.3e-07]
[1740583211180,0.170021,88224.0,88223.0,1.3e-07]
[1740583211358,0.1720049,88224.0,88223.0,1.3e-07]
[1740583211592,0.170021,88224.0,88223.0,1.3e-07]
[1740583211999,0.226666,88236.0,88223.0,1.3e-07]
[1740583212000,0.17002,88225.0,88223.0,1.3e-07]
[1740583212205,0.00210618,88224.0,88223.0,1.3e-07]
[1740583212407,0.0429879,88224.0,88223.0,1.3e-07]
[1740583212653,0.00210618,88224.0,88223.0,1.3e-07]
[1740583212870,0.00112268,88224.0,88223.0,1.3e-07]
[1740583213115,0.00012268,88224.0,88223.0,1.3e-07]
[1740583213544,0.00012268,88224.0,88223.0,0.01954098]
[1740583213545,0.00112268,88224.0,88223.0,0.01954098]
[1740583214691,0.00112268,88224.0,88223.0,0.40044098]
[1740583214903,0.00012268,88224.0,88223.0,0.39544098]
[1740583215024,0.00112268,88224.0,88223.0,0.39544098]
[1740583215432,0.00012268,88224.0,88223.0,0.39544098]
[1740583215641,0.00112268,88224.0,88223.0,0.39544098]
[1740583216051,0.00012268,88224.0,88223.0,0.39544098]
[1740583216308,0.17114368,88224.0,88223.0,0.39544098]
[1740583216499,0.3282978,88271.0,88224.0,0.31454085]
[1740583216843,0.170004,88233.0,88232.0,0.31454085]
[1740583217467,0.00198322,88270.0,88232.0,0.31454085]
[1740583217667,0.169996,88237.0,88236.0,0.31454085]
[1740583217906,0.00198312,88268.0,88236.0,0.31454085]
[1740583218081,0.3282978,88271.0,88236.0,0.30041065]
[1740583218280,0.169996,88237.0,88236.0,0.30041065]
[1740583218724,0.169996,88237.0,88236.0,6.5e-07]
[1740583218956,0.17197958,88237.0,88236.0,6.5e-07]
[1740583219160,0.169996,88237.0,88236.0,0.00700065]
[1740583219489,0.169996,88237.0,88236.0,6.5e-07]
[1740583219936,0.169996,88237.0,88236.0,0.00742475]
[1740583220492,0.169996,88237.0,88236.0,1.80742475]
[1740583220997,0.169996,88237.0,88236.0,1.8219656]
[1740583221720,0.169996,88237.0,88236.0,1.8149656]
[1740583221957,0.169996,88237.0,88236.0,1.8219656]
[1740583222427,0.169996,88237.0,88236.0,1.8149656]
[1740583222673,0.169996,88237.0,88236.0,1.8219656]
[1740583225416,0.169996,88237.0,88236.0,0.30742475]
[1740583225848,0.169996,88237.0,88236.0,0.3219656]
[1740583226833,0.169996,88237.0,88236.0,1.8219656]
[1740583227853,0.169994,88238.0,88237.0,0.31454085]
[1740583228266,0.3282978,88266.0,88237.0,0.40520628]
[1740583228480,0.3282978,88266.0,88246.0,0.09066543]
[1740583228683,0.3282978,88266.0,88248.0,0.06294085]
[1740583228684,0.169975,88249.0,88248.0,0.06294085]
[1740583229300,0.169975,88249.0,88248.0,0.01454085]
[1740583229499,0.169975,88249.0,88248.0,3.7e-07]
[1740583229883,0.1719583,88249.0,88248.0,3.7e-07]
[1740583230087,0.169975,88249.0,88248.0,3.7e-07]
[1740583230810,0.169977,88247.0,88246.0,0.007]
[1740583231676,0.169992,88239.0,88238.0,0.3]
[1740583231876,0.169996,88237.0,88236.0,0.00042475]
[1740583232197,0.17197933,88237.0,88236.0,7.5e-07]
[1740583232394,0.18139614,88237.0,88236.0,7.5e-07]
[1740583233057,0.17941281,88237.0,88236.0,7.5e-07]
[1740583233539,0.18139616,88237.0,88236.0,7.5e-07]
[1740583233740,0.17941281,88237.0,88236.0,7.5e-07]
[1740583234366,0.17941281,88237.0,88236.0,0.00700075]
[1740583234565,0.17941281,88237.0,88236.0,0.0215416]
[1740583234714,0.17941281,88237.0,88236.0,0.0145416]
[1740583234915,0.17941281,88237.0,88236.0,0.0215416]
[1740583235378,0.17941281,88237.0,88236.0,0.0145416]
[1740583235614,0.17941281,88237.0,88236.0,0.0215416]
[1740583236831,0.00941681,88237.0,88236.0,0.0917416]
[1740583236966,0.169996,88237.0,88236.0,0.0917416]
[1740583237171,0.17935874,88237.0,88236.0,0.0987416]
[1740583238275,0.17935874,88237.0,88236.0,0.00700075]
[1740583238483,0.17935874,88237.0,88236.0,7.5e-07]
[1740583238686,0.18134205,88237.0,88236.0,7.5e-07]
[1740583239111,0.18134205,88237.0,88185.0,0.0757]
[1740583239112,0.170085,88191.0,88185.0,0.0757]
[1740583239551,0.17704399,88191.0,88185.0,0.0757]
[1740583240168,0.17704399,88191.0,88175.0,0.01264]
[1740583240598,0.17704399,88191.0,88175.0,0.10330543]
[1740583240798,0.1807441,88191.0,88190.0,0.0074245]
[1740583241000,0.1807441,88191.0,88190.0,0.02196535]
[1740583241418,0.1807441,88191.0,88190.0,1.52196535]
[1740583241619,0.1704954,88191.0,88190.0,1.51496535]
[1740583241828,0.17970489,88191.0,88190.0,1.81496535]
[1740583242030,0.01020949,88191.0,88190.0,1.99205235]
[1740583242233,0.00198366,88245.0,88193.0,0.3]
[1740583242378,0.170079,88194.0,88193.0,0.3]
[1740583242581,0.170079,88194.0,88193.0,0.31264]
[1740583243019,0.170079,88194.0,88193.0,1.83672664]
[1740583243535,0.04,88251.0,88193.0,1.84372664]
[1740583243731,0.42152173,88243.0,88193.0,1.74372664]
[1740583244098,0.170076,88196.0,88193.0,0.23672664]
[1740583244306,0.226714,88217.0,88193.0,0.24372664]
[1740583244581,0.170079,88194.0,88193.0,0.22718085]
[1740583244792,0.226758,88200.0,88193.0,0.22718085]
[1740583244995,0.32,88263.0,88193.0,0.01964]
[1740583245212,0.00198347,88247.0,88204.0,0.09066543]
[1740583245635,0.00198347,88257.0,88206.0,0.0761]
[1740583245836,0.170052,88208.0,88207.0,0.01454085]
[1740583246043,0.00198367,88247.0,88207.0,0.01454085]
[1740583246251,0.453216,88259.0,88209.0,0.31454085]
[1740583246460,0.00198329,88258.0,88213.0,0.09066543]
[1740583246663,0.170039,88215.0,88214.0,0.31454085]
[1740583247513,0.17529857,88217.0,88214.0,0.31454085]
[1740583247722,0.170039,88215.0,88214.0,0.31454085]
[1740583248366,0.170039,88215.0,88214.0,0.01454085]
[1740583248574,0.170039,88215.0,88214.0,0.02154085]
[1740583248791,0.3282978,88275.0,88235.0,0.0811]
[1740583249002,0.00198294,88274.0,88236.0,0.01454085]
[1740583249216,0.169996,88237.0,88236.0,0.01454085]
[1740583249651,0.169996,88237.0,88205.0,0.44402869]
[1740583249652,0.170031,88219.0,88218.0,0.0758]
[1740583249758,0.170044,88212.0,88211.0,0.01264]
[1740583249980,0.170052,88208.0,88207.0,0.0758]
[1740583250179,0.170052,88208.0,88207.0,0.09034085]
[1740583250388,0.170052,88208.0,88207.0,0.0758]
[1740583251061,0.170052,88208.0,88207.0,0.09034085]
[1740583251263,0.170052,88208.0,88207.0,0.09046353]
[1740583251472,0.170052,88208.0,88207.0,1.89746353]
[1740583252102,0.170052,88208.0,88207.0,1.52166353]
[1740583252354,0.170052,88208.0,88207.0,1.50712268]
[1740583252904,0.170052,88208.0,88207.0,1.82166353]
[1740583253209,0.170052,88208.0,88207.0,1.81466353]
[1740583253565,0.16896634,88208.0,88207.0,1.82166353]
[1740583253703,0.226711,88218.0,88207.0,1.82166353]
[1740583253704,0.3282978,88257.0,88208.0,0.3]
[1740583254063,0.00198353,88256.0,88211.0,0.01454085]
[1740583254291,0.00198353,88256.0,88210.0,0.3819]
[1740583254292,0.00198329,88266.0,88219.0,0.31454085]
[1740583254477,0.00198294,88277.0,88227.0,0.31454085]
[1740583254677,0.17,88235.0,88229.0,0.01454085]
[1740583254892,0.17001,88230.0,88229.0,0.01454085]
[1740583255089,0.00198321,88275.0,88229.0,0.01454085]
[1740583255230,0.172815,88274.0,88230.0,0.00954206]
[1740583255618,0.170008,88231.0,88230.0,0.00954206]
[1740583255839,0.170008,88231.0,88230.0,0.02408291]
[1740583256582,0.05671509,88297.0,88231.0,0.01454085]
[1740583256785,0.00198313,88271.0,88231.0,0.0831]
[1740583257005,0.3282978,88278.0,88232.0,0.01454085]
[1740583257006,0.00198297,88277.0,88232.0,0.01454085]
[1740583257208,0.170004,88233.0,88232.0,0.01454085]
[1740583257433,0.170008,88231.0,88230.0,0.00954206]
[1740583257659,0.170037,88216.0,88215.0,0.0795]
[1740583257790,0.170052,88208.0,88207.0,0.00012268]
[1740583257989,0.226634,88248.0,88207.0,0.00012268]
[1740583258240,0.170052,88208.0,88207.0,0.00012268]
[1740583260244,0.170052,88208.0,88207.0,0.31466353]
[1740583260445,0.170052,88208.0,88207.0,0.00012268]
[1740583260595,0.170052,88208.0,88207.0,0.00712268]
[1740583260805,0.170052,88208.0,88207.0,1.80012268]
[1740583261204,0.170052,88208.0,88207.0,1.81466353]
[1740583261814,0.170052,88208.0,88207.0,1.82166353]
[1740583262668,0.226701,88222.0,88207.0,1.82166353]
[1740583262669,0.3282978,88263.0,88209.0,0.01454085]
[1740583262913,0.00198352,88257.0,88213.0,0.39066543]
[1740583263115,0.1126771,88258.0,88214.0,0.31454085]
[1740583263116,0.00198321,88258.0,88214.0,0.31454085]
[1740583263354,0.3282978,88263.0,88214.0,0.31454085]
[1740583263355,0.170039,88215.0,88214.0,0.31454085]
[1740583263995,0.170039,88215.0,88214.0,0.32407544]
[1740583264201,0.170039,88215.0,88214.0,0.02407544]
[1740583264845,0.170039,88215.0,88214.0,0.01653459]
[1740583265066,0.170052,88208.0,88207.0,0.00012268]
[1740583265682,0.170047,88211.0,88207.0,0.00012268]
[1740583265928,0.170052,88208.0,88207.0,0.00012268]
[1740583266345,1.180957,88257.0,88207.0,0.00012268]
[1740583266554,0.33028114,88255.0,88209.0,0.01454085]
[1740583266699,0.170048,88210.0,88209.0,0.01454085]
[1740583266903,0.226724,88213.0,88207.0,0.30012268]
[1740583267146,0.170052,88208.0,88207.0,0.00012268]
[1740583267501,0.3,88228.0,88187.0,0.0768]
[1740583267706,0.39925942,88239.0,88190.0,5e-07]
[1740583267707,0.170085,88191.0,88190.0,5e-07]
[1740583268182,0.17206963,88191.0,88190.0,5e-07]
[1740583269204,0.52036743,88191.0,88190.0,5e-07]
[1740583269444,0.5475325,88191.0,88190.0,5e-07]
[1740583269863,0.5183828,88191.0,88190.0,5e-07]
[1740583270071,0.5183828,88191.0,88151.0,0.0002]
[1740583270072,0.17016,88152.0,88151.0,0.0002]
[1740583270493,0.0964,88200.0,88151.0,0.0002]
[1740583270702,0.0764,88200.0,88151.0,0.0002]
[1740583270908,0.28094383,88190.0,88151.0,0.0002]
[1740583271116,0.001,88191.0,88153.0,0.31454085]
[1740583271332,0.00012309,88190.0,88153.0,0.31454085]
[1740583271499,0.00012309,88190.0,88155.0,0.01454085]
[1740583271755,0.226788,88188.0,88169.0,0.31454085]
[1740583272010,0.170125,88170.0,88169.0,0.31454085]
[1740583272703,0.170125,88170.0,88169.0,1.81454085]
[1740583272913,0.170118,88174.0,88169.0,1.81454085]
[1740583273125,0.453443,88214.0,88155.0,0.01454085]
[1740583273343,0.00198443,88213.0,88174.0,0.01454085]
[1740583273606,0.226732,88210.0,88183.0,0.31454085]
[1740583273825,0.170098,88185.0,88183.0,0.31454085]
[1740583274036,0.02,88233.0,88183.0,0.31454085]
[1740583274037,0.226713,88218.0,88183.0,0.31454085]
[1740583274242,0.0475,88243.0,88189.0,0.56122985]
[1740583274450,0.226728,88212.0,88189.0,0.56122985]
[1740583274663,0.339973,88243.0,88189.0,0.56122985]
[1740583274889,0.170056,88206.0,88189.0,0.56122985]
[1740583275106,0.226673,88233.0,88189.0,0.57386985]
[1740583275312,0.17006,88205.0,88189.0,0.60902985]
[1740583275521,0.17021009,88190.0,88189.0,0.43894085]
[1740583275733,0.17021009,88190.0,88189.0,0.01454085]
[1740583275944,0.170108,88179.0,88178.0,0.01264]
[1740583277036,0.226808,88180.0,88166.0,0.0787]
[1740583277261,0.170124,88171.0,88166.0,0.0787]
[1740583277471,0.340134,88201.0,88167.0,0.01454085]
[1740583277677,0.00210767,88190.0,88162.0,0.01264]
[1740583277881,0.170139,88163.0,88162.0,0.01264]
[1740583278104,0.226783,88190.0,88163.0,0.01454085]
[1740583278318,0.01264,88237.0,88163.0,0.01454085]
[1740583278319,0.170137,88164.0,88163.0,0.01454085]
[1740583279197,0.170139,88163.0,88162.0,0.01264]
[1740583279609,0.00012302,88164.0,88163.0,0.3]
[1740583279835,0.1012,88225.0,88164.0,0.01454085]
[1740583280053,0.0011232,88191.0,88164.0,0.31454085]
[1740583280258,0.226822,88175.0,88164.0,0.31454085]
[1740583280462,0.170114,88176.0,88175.0,0.31454085]
[1740583281316,0.170114,88176.0,88175.0,0.01454085]
[1740583282123,0.2276314,88190.0,88175.0,0.48710628]
[1740583282343,0.170114,88176.0,88175.0,0.48710628]
[1740583283001,0.170114,88176.0,88175.0,1.8]
[1740583285415,0.02,88225.0,88176.0,0.01454085]
[1740583285653,0.170112,88177.0,88176.0,0.01454085]
[1740583286208,0.2276314,88190.0,88176.0,0.01454085]
[1740583286433,0.170112,88177.0,88171.0,0.31454085]
[1740583286767,0.0008484,88190.0,88177.0,0.31454085]
[1740583286976,0.0008484,88190.0,88189.0,2.07529528]
[1740583287101,0.0008484,88190.0,88189.0,1.90520628]
[1740583287506,0.22673,88211.0,88190.0,0.56622785]
[1740583287882,0.17006,88204.0,88190.0,0.56622785]
[1740583288087,0.170053,88208.0,88190.0,0.56622785]
[1740583288220,0.226712,88218.0,88190.0,0.56622785]
[1740583288430,0.170054,88208.0,88190.0,0.56622785]
[1740583288713,0.3282978,88240.0,88190.0,0.56622785]
[1740583288714,0.3282978,88254.0,88213.0,0.01454085]
[1740583288900,0.170025,88222.0,88221.0,0.01454085]
[1740583289344,0.226697,88224.0,88221.0,0.01454085]
[1740583289654,0.453166,88268.0,88224.0,0.31454085]
[1740583289655,0.17002,88225.0,88224.0,0.31454085]
[1740583289854,0.170019,88225.0,88224.0,0.31454085]
[1740583290411,0.17014218,88225.0,88224.0,1.81454085]
[1740583290909,0.17014218,88225.0,88224.0,1.8]
[1740583291636,0.170027,88221.0,88220.0,0.3]
[1740583292043,0.170027,88221.0,88220.0,1.81454085]
[1740583292276,0.170027,88221.0,88220.0,0.31454085]
[1740583292898,0.00012318,88225.0,88221.0,0.01454085]
[1740583292899,0.170025,88222.0,88221.0,0.01454085]
[1740583294090,0.170025,88222.0,88212.0,0.0788]
[1740583294091,0.170066,88201.0,88200.0,0.0788]
[1740583294294,0.00097158,88225.0,88180.0,0.3241]
[1740583294295,0.170091,88188.0,88187.0,0.0788]
[1740583294703,0.226745,88205.0,88187.0,0.0788]
[1740583294954,0.170091,88188.0,88187.0,0.0788]
[1740583295172,0.170106,88180.0,88178.0,0.0130242]
[1740583295374,0.226805,88182.0,88179.0,0.39396181]
[1740583295575,0.3282978,88221.0,88179.0,0.39396181]
[1740583295783,0.170106,88180.0,88179.0,0.39396181]
[1740583296004,0.170106,88180.0,88179.0,0.31454085]
[1740583296260,0.170106,88180.0,88178.0,0.0130242]
[1740583296261,0.170108,88179.0,88178.0,0.0130242]
[1740583297073,0.170108,88179.0,88178.0,0.0004104]
[1740583297487,0.226801,88183.0,88178.0,0.0004104]
[1740583297678,0.226751,88203.0,88178.0,0.0004104]
[1740583297897,0.170105,88181.0,88178.0,0.0004104]
[1740583298090,0.22673,88211.0,88178.0,0.0004104]
[1740583298299,0.453391,88224.0,88181.0,0.01454085]
[1740583298479,0.00198415,88218.0,88178.0,0.0004104]
[1740583298648,0.170105,88181.0,88178.0,0.01495125]
[1740583298831,0.170108,88179.0,88178.0,0.01495125]
[1740583299029,0.00198415,88218.0,88178.0,0.01495125]
[1740583299253,0.00198415,88218.0,88177.0,0.21495125]
[1740583299459,0.00198415,88218.0,88169.0,0.00887169]
[1740583299460,0.170108,88180.0,88169.0,0.00887169]
[1740583299661,0.170112,88177.0,88170.0,0.170125]
[1740583299827,0.170114,88176.0,88169.0,0.170127]
[1740583300024,0.170123,88171.0,88170.0,0.0752]
[1740583300227,0.0411782,88217.0,88161.0,0.09066543]
[1740583300431,0.17013,88168.0,88161.0,0.26080743]
[1740583300690,0.17053958,88168.0,88167.0,1.5]
[1740583301328,0.17053958,88168.0,88167.0,1.81454085]
[1740583302772,0.0008484,88225.0,88168.0,0.31454085]
[1740583302943,0.170127,88169.0,88168.0,0.31454085]
[1740583303169,0.170127,88169.0,88168.0,0.3]
[1740583303374,0.170127,88169.0,88168.0,1.8]
[1740583304025,0.226797,88185.0,88168.0,1.8]
[1740583304026,0.226777,88193.0,88169.0,0.01454085]
[1740583304170,0.22679,88188.0,88169.0,0.01454085]
[1740583304371,0.7817408,88214.0,88169.0,0.01454085]
[1740583304372,0.3282978,88214.0,88174.0,0.01454085]
[1740583304570,0.340062,88219.0,88178.0,0.01454085]
[1740583304771,0.170056,88206.0,88205.0,1.5]
[1740583305153,0.170056,88206.0,88205.0,1.51454085]
[1740583306415,0.170054,88207.0,88206.0,0.31454085]
[1740583308058,0.170054,88207.0,88206.0,0.01454085]
[1740583308385,0.170112,88178.0,88177.0,0.0126]
[1740583308714,0.170112,88178.0,88177.0,0.0127232]
[1740583308932,0.170112,88178.0,88177.0,0.0001232]
[1740583309147,0.17011,88178.0,88177.0,1.5001232]
[1740583309395,0.00198441,88220.0,88180.0,0.31454085]
[1740583309602,0.0008484,88225.0,88187.0,0.0459]
[1740583309807,0.170056,88207.0,88196.0,0.01454085]
[1740583309975,0.2275424,88225.0,88196.0,0.01454085]
[1740583309976,0.0008484,88225.0,88208.0,0.226734]
[1740583310199,0.0008484,88225.0,88222.0,0.01454085]
[1740583310402,0.0008484,88225.0,88221.0,0.3]
[1740583310403,0.0008484,88225.0,88221.0,0.01454085]
[1740583310604,0.170025,88222.0,88221.0,0.01454085]
[1740583311250,0.17014818,88222.0,88221.0,1.81454085]
[1740583311398,0.00012318,88222.0,88221.0,1.81454085]
[1740583311797,0.00012318,88222.0,88221.0,1.98456785]
[1740583312472,0.17014818,88222.0,88221.0,1.5]
[1740583312696,0.00012318,88222.0,88221.0,1.81454085]
[1740583313131,0.17014818,88222.0,88221.0,1.81454085]
[1740583313342,0.00012318,88222.0,88221.0,1.81454085]
[1740583314243,0.00012318,88222.0,88221.0,1.98456785]
[1740583314454,0.17014818,88222.0,88221.0,1.81454085]
[1740583314673,0.00012318,88222.0,88221.0,1.98456785]
[1740583315103,0.048,88284.0,88252.0,0.169966]
[1740583315311,0.08,88290.0,88244.0,0.0126]
[1740583315312,0.22653,88289.0,88244.0,0.0126]
[1740583315525,0.00041075,88263.0,88251.0,0.09066543]
[1740583315735,0.00041075,88263.0,88252.0,0.36084085]
[1740583315948,0.169965,88253.0,88252.0,0.36084085]
[1740583316154,0.169965,88253.0,88252.0,0.31454085]
[1740583316565,0.169965,88253.0,88252.0,1.81454085]
[1740583318567,0.00568033,88255.0,88220.0,0.0793]
[1740583318798,0.169948,88262.0,88220.0,0.3793]
[1740583318997,0.00041075,88263.0,88222.0,0.3]
[1740583319201,0.170022,88224.0,88223.0,0.01454085]
[1740583319402,0.0826,88283.0,88225.0,0.01454085]
[1740583319804,0.0826,88283.0,88233.0,0.31454085]
[1740583320027,0.169998,88237.0,88233.0,0.31454085]
[1740583320423,0.0826,88294.0,88235.0,0.33454085]
[1740583320653,0.00097375,88279.0,88261.0,0.31454085]
[1740583320852,0.00097375,88279.0,88260.0,0.09066543]
[1740583320853,0.00097375,88279.0,88272.0,0.01454085]
[1740583321067,0.169927,88273.0,88272.0,0.01454085]
[1740583321422,0.00097375,88279.0,88272.0,0.01454085]
[1740583321628,0.169927,88273.0,88272.0,0.01454085]
[1740583321823,0.169936,88269.0,88263.0,0.31454085]
[1740583322048,0.226557,88278.0,88263.0,0.31454085]
[1740583322257,0.226557,88278.0,88277.0,1.81454085]
[1740583322258,0.396474,88278.0,88277.0,1.81454085]
[1740583322506,0.00097375,88279.0,88278.0,0.31454085]
[1740583323121,0.17088875,88279.0,88278.0,0.31454085]
[1740583323320,0.17088875,88279.0,88278.0,1.81454085]
[1740583323321,0.00097375,88279.0,88278.0,1.81454085]
[1740583323456,0.00097375,88279.0,88278.0,1.98445785]
[1740583323862,0.0008504,88297.0,88296.0,0.31454085]
[1740583324152,0.00126082,88297.0,88296.0,0.62352385]
[1740583324352,0.00126082,88297.0,88296.0,0.45364085]
[1740583324547,0.17114182,88297.0,88296.0,0.45364085]
[1740583324747,0.00126082,88297.0,88296.0,0.45364085]
[1740583325227,0.00126082,88297.0,88296.0,0.94762385]
[1740583326034,0.00126082,88297.0,88296.0,0.77774085]
[1740583326943,0.0008504,88304.0,88303.0,0.469869]
[1740583327161,0.0008508,88342.0,88306.0,1.05000385]
[1740583327377,0.0008508,88342.0,88310.0,0.04]
[1740583327594,0.0008508,88342.0,88313.0,0.50985]
[1740583327803,0.0008508,88342.0,88313.0,0.63813838]
[1740583328017,0.0008508,88342.0,88325.0,0.189827]
[1740583328249,0.0008508,88342.0,88325.0,1.21618807]
[1740583328601,0.0008508,88342.0,88332.0,0.469813]
[1740583328804,0.0008508,88342.0,88337.0,0.509804]
[1740583329035,0.00097323,88338.0,88337.0,0.65069238]
[1740583329442,0.226301,88378.0,88346.0,0.3]
[1740583329686,0.169783,88348.0,88347.0,0.63666]
[1740583329839,0.169781,88349.0,88348.0,0.3]
[1740583330036,0.3460473,88400.0,88349.0,0.01454085]
[1740583330292,0.169779,88350.0,88349.0,0.01454085]
[1740583330488,0.169778,88351.0,88349.0,0.01454085]
[1740583330709,0.3282978,88398.0,88349.0,0.01454085]
[1740583330710,0.169779,88350.0,88349.0,0.01454085]
[1740583331046,0.226354,88358.0,88341.0,0.01256]
[1740583331244,0.02598574,88394.0,88337.0,0.01454085]
[1740583331512,0.169789,88345.0,88340.0,0.31454085]
[1740583331723,0.169786,88347.0,88343.0,0.31454085]
[1740583331925,0.16979,88344.0,88343.0,0.31454085]
[1740583332550,0.226254,88396.0,88343.0,0.31454085]
[1740583332757,0.169791,88344.0,88338.0,0.01256]
[1740583332905,0.169775,88353.0,88340.0,0.01454085]
[1740583333134,0.00239051,88395.0,88346.0,0.01454085]
[1740583333346,0.226305,88377.0,88346.0,0.01454085]
[1740583333579,0.02598574,88412.0,88346.0,0.01454085]
[1740583333580,0.02,88408.0,88347.0,0.3]
[1740583333777,0.226316,88372.0,88347.0,0.3]
[1740583334141,0.22636,88355.0,88348.0,0.01454085]
[1740583334406,0.00012301,88372.0,88348.0,0.01454085]
[1740583334610,0.00012301,88372.0,88371.0,0.48427885]
[1740583334820,0.00012301,88372.0,88371.0,0.49683885]
[1740583335212,0.00012301,88372.0,88371.0,0.32710085]
[1740583336024,0.169735,88373.0,88372.0,0.01454085]
[1740583336184,0.00197968,88414.0,88365.0,0.00872272]
[1740583336185,0.169746,88367.0,88366.0,0.01256]
[1740583336388,0.169735,88373.0,88366.0,0.01256]
[1740583336758,0.00198017,88412.0,88367.0,0.01454085]
[1740583336936,0.169744,88368.0,88367.0,0.33864085]
[1740583337133,0.226305,88376.0,88367.0,0.01454085]